Cogmind - Beta 15 @@@ ROGUE MODE // 2025.09.30 @ 15:14:56 Player: Figgis Result: Smashed by cave-in Performance ------------- Evolutions (0) 0 Regions Visited (2) 400 Robots Destroyed (23) 115 Value Destroyed (668) 668 Prototype IDs (0) 0 Alien Tech Used (0) 0 Bonus (0) 0 TOTAL SCORE: 1183 Bonus ------- None Cogmind --------- Core Integrity 0/250 Matter 127/300 Energy 125/125 System Corruption 12% Temperature Cool (4) Movement Treading (240) Ox1 Location -10/Mines Parts ------- > --- POWER (1) -------- Light Ion Engine > --- PROPULSION (2) --- Light Treads > --- UTILITY (2) ------ Large Storage Unit > --- WEAPON (2) ------- Improved Light Cannon > --- INVENTORY (15) --- Light Ion Engine Light Ion Engine Light Treads Light Treads Light Treads Light Treads Light Treads High-capacity Storage Unit Improved Targeting Computer Light Assault Rifle Improved Light Cannon Improved Light Cannon Grenade Launcher Peak State ------------ > --- POWER ------------ Light Nuclear Core > --- PROPULSION ------- Light Treads Light Treads > --- UTILITY ---------- Small Storage Unit Improved Targeting Computer > --- WEAPON ----------- Improved Light Cannon Improved Light Cannon > --- INVENTORY -------- Light Ion Engine Light Treads Light Treads High-capacity Storage Unit Improved Targeting Computer Light Assault Rifle Improved Light Cannon Improved Light Cannon [Rating: 13] Favorites ----------- Power Light Nuclear Core Engine Light Ion Engine Power Core Light Nuclear Core Propulsion Light Treads Treads Light Treads Utility Large Storage Unit Storage Large Storage Unit Processor Improved Targeting Computer Weapon Improved Light Cannon Energy Gun Medium Laser Ballistic Gun Light Assault Rifle Ballistic Cannon Improved Light Cannon Launcher Grenade Launcher Build | -11 -10 -10 ------- Run | Yrd Mat Min Slots Evolved . | . . . Power . | . . . Propulsion . | . . . Utility . | . . . Weapon . | . . . Parts Attached 17 | 3 12 2 Power 4 | 1 2 1 Engine 3 | 1 1 1 Core 1 | . 1 . Reactor . | . . . Propulsion 4 | 2 2 . Treads 4 | 2 2 . Leg . | . . . Wheel . | . . . Hover . | . . . Flight . | . . . Utility 3 | . 3 . Device . | . . . Storage 2 | . 2 . Processor 1 | . 1 . Hackware . | . . . Protection . | . . . Artifact . | . . . Weapon 6 | . 5 1 Energy Gun 2 | . 2 . Energy Cannon . | . . . Ballistic Gun 1 | . 1 . Ballistic Cannon 2 | . 2 . Launcher 1 | . . 1 Special Weapon . | . . . Impact Weapon . | . . . Slashing Weapon . | . . . Piercing Weapon . | . . . Special Melee Weapon . | . . . Unidentified Prototypes . | . . . Parts Lost 4 | . 1 3 Power 1 | . 1 . Propulsion 1 | . . 1 Utility 1 | . . 1 Weapon 1 | . . 1 Highest Loss Streak 2 | . 1 2 To Critical Strikes . | . . . Average Backups 9 | 3 8 13 Power 1 | . 1 2 Propulsion 3 | . 2 5 Utility 1 | . 1 2 Weapon 2 | 1 2 4 Tool/Special . | . . . Unused Backups 12 | . . 12 Power 2 | . . 2 Propulsion 5 | . . 5 Utility 2 | . . 2 Weapon 3 | . . 3 Tool/Special . | . . . Average Slot Usage (%) 92 | . 92 92 Engine 3 | . 3 6 Core 9 | . 9 7 Treads 28 | . 28 28 Storage 13 | . 13 14 Processor 9 | . 9 6 Energy Gun 2 | . 3 . Ballistic Gun 2 | . 3 . Ballistic Cannon 21 | . 19 27 Peak Build Rating 13 | 3 13 13 Average Rating 10 | 1 10 10 On Entrance 5 | . 3 13 Naked Turns . | . . . Heaviest Build 33 | 3 33 33 Greatest Support 40 | 3 40 40 Greatest Overweight (x) 1 | . . 1 Average Overweight (x) . | . . . Largest Inventory Capacity 15 | 5 15 15 Average Capacity 12 | 5 12 15 Most Carried 14 | 5 13 14 Average Carried 9 | 3 8 13 Final Capacity 15 | 5 15 15 Final Carried 13 | 5 13 13 Class Distribution -------------------- 100% | Mutant Dominant Class ---------------- Mutant | -10/Materials Mutant | -10/Mines Resources | -11 -10 -10 ----------- Run | Yrd Mat Min Matter Collected 481 | 230 213 38 Remotely . | . . . Salvage Created 505 | . 449 56 Parts 27 | . 24 3 Haulers Intercepted . | . . . Recyclers Shooed 1 | . 1 . Parts Field Recycled . | . . . Retrieved Matter . | . . . Parts Self-Destructed . | . . . Prevented . | . . . Kills | -11 -10 -10 ------- Run | Yrd Mat Min Combat Hostiles Destroyed 26 | . 14 12 Guns 9 | . 9 . Cannons 9 | . 5 4 AOE 8 | . . 8 Classes Destroyed 6 | . 4 2 Operator 2 | . 2 . Watcher 2 | . 2 . Swarmer 9 | . 6 3 Grunt 8 | . 8 . Demolisher 2 | . . 2 Assembled 7 | . . 7 Best Kill Streak 7 | . 4 7 Combat Bots Only 7 | . 3 7 Max Kills in Single Turn 3 | . 1 3 Gunslinging . | . . . Exploded 3 | . . 3 Melee . | . . . Uniques/NPCs Destroyed . | . . . Combat | -11 -10 -10 -------- Run | Yrd Mat Min Hostile Shots Fired 89 | . 65 24 Missed 20 | . 15 5 Hits 69 | . 50 19 Projectile 69 | . 50 19 AOE 7 | . . 7 Critical Strikes 3 | . 3 . Part Disruptions 1 | . . 1 Damage Taken 1375 | . 500 875 Core 307 | . 91 216 Absorbed by Shields . | . . . Core Remaining (%) 100 | 100 . . Volleys Fired 62 | . 46 16 Largest 2 | . 2 2 Hottest 70 | . 70 66 Shots Fired 117 | . 85 32 Gun 61 | . 61 . Cannon 52 | . 24 28 Launcher 4 | . . 4 Special . | . . . Kinetic 80 | . 52 28 Thermal 27 | . 27 . Explosive 4 | . . 4 Electromagnetic 6 | . 6 . Robot Hit Streak 6 | . 6 3 Robot Miss Streak 4 | . 4 3 Penetration Max . | . . . Secondary Targets 3 | . 3 . Max Gunslinging Chain 1 | . 1 . Shots Hit Robots 58 | . 48 10 Core Hits 45 | . 27 18 Critical Kills . | . . . Critical Parts Destroyed . | . . . Critical Strikes 2 | . 1 1 Burn 1 | . 1 . Blast 1 | . . 1 Melee Attacks . | . . . Impact . | . . . Slashing . | . . . Piercing . | . . . Sneak Attacks . | . . . Combat Hostiles . | . . . Follow-up Attacks . | . . . Damage Inflicted 1342 | . 673 669 Guns 445 | . 445 . Cannons 461 | . 228 233 Explosions 436 | . . 436 Melee . | . . . Ramming . | . . . Kinetic 612 | . 379 233 Thermal 402 | . 226 176 Explosive 260 | . . 260 Electromagnetic 68 | . 68 . Impact . | . . . Slashing . | . . . Piercing . | . . . Highest Corruption 4 | . . 4 Average Corruption 4 | . . 4 Corruption Purged . | . . . Corruption Blocked . | . . . Effects 4 | . . 4 Message Errors 1 | . . 1 Matter Fused 2 | . . 2 Energy Discharges 1 | . . 1 Overload Shots . | . . . Overflow Damage 31 | . 2 29 Projectiles 22 | . 2 20 Explosions 9 | . . 9 Melee . | . . . Knockbacks 3 | . 3 . Impact . | . . . Kinetic 3 | . 3 . Secondary . | . . . Self-Inflicted Damage . | . . . Shots . | . . . Rammed . | . . . Targets Rammed . | . . . Kicked . | . . . Crushed . | . . . Highest Temperature 310 | . 310 78 Average Temperature 55 | . 68 22 Received Heat Transfer 252 | . 192 60 Effects 2 | . 2 . Interference 1 | . 1 . Short Circuit 1 | . 1 . Siege Activations . | . . . Martial Activations . | . . . Shielding Activations . | . . . Robots Disrupted . | . . . Combat Hostiles . | . . . Robots Corrupted . | . . . Combat Hostiles . | . . . Parts Fried . | . . . Impact Corruptions . | . . . Robots Melted . | . . . Combat Hostiles . | . . . Parts Melted 2 | . 2 . Heat Transferred 940 | . 740 200 Parts Sabotaged . | . . . Parts Stolen . | . . . Parts Stripped . | . . . Power Chain Reactions . | . . . Alert | -11 -10 -10 ------- Run | Yrd Mat Min Maximum Alert Level 1 | . . 1 Low Security (%) 96 | 100 100 81 Level 1 3 | . . 18 Level 2 . | . . . Level 3 . | . . . Level 4 . | . . . Level 5 . | . . . High Security . | . . . Max Security . | . . . Peak Influence 230 | . 150 230 Initial . | . . . Average 83 | . 68 143 Influence Increases 720 | . 425 295 Destroy 0b10 Robot/C 380 | . 280 100 Destroy 0b10 Robot/NC 20 | . 20 . Destroy Leader 94 | . 74 20 Successful Hack 19 | . 19 . Disable Machine 165 | . 30 135 Destroy Structure 42 | . 2 40 Influence Decreases 615 | . 425 190 Time Decay 575 | . 415 160 Lost Part 40 | . 10 30 Squads Dispatched 4 | . 4 . Investigation 2 | . 2 . Extermination . | . . . Reinforcement 2 | . 2 . Assault . | . . . Garrison . | . . . Intercept . | . . . Searches Triggered . | . . . Construction Impeded . | . . . Haulers Reinforced . | . . . Active Scanning Responses . | . . . Cargo Convoy Interrupts . | . . . Stealth | -11 -10 -10 --------- Run | Yrd Mat Min Distress Signals 4 | . 3 1 Communications Jammed . | . . . Distress Signals . | . . . Times Spotted 34 | . 23 11 Peak Tracking Total 7 | . 5 7 Tactical Retreats . | . . . Traps | -11 -10 -10 ------- Run | Yrd Mat Min Traps Triggered 1 | . 1 . Indirectly . | . . . Trap Hack Attempts . | . . . Triggered . | . . . Disarmed . | . . . Reprogrammed . | . . . Reused . | . . . Traps Extracted . | . . . Installed . | . . . Triggered . | . . . Machines | -11 -10 -10 ---------- Run | Yrd Mat Min Machines Disabled 11 | . 2 9 Max in Single Turn 9 | . 1 9 Machines Repaired . | . . . Machines Dismantled . | . . . Machines Sabotaged . | . . . Overloaded Fab Kills . | . . . Hacking | -11 -10 -10 --------- Run | Yrd Mat Min Machines Accessed 6 | . 6 . Terminals 6 | . 6 . Fabricators . | . . . Repair Stations . | . . . Recycling Units . | . . . Scanalyzers . | . . . Garrison Access . | . . . Total Hacks 14 | . 14 . Successful 6 | . 6 . Failed 8 | . 8 . Catastrophic 2 | . 2 . Database Lockouts . | . . . Manual 9 | . 9 . Terminals 14 | . 14 . Fabricators . | . . . Repair Stations . | . . . Recycling Units . | . . . Scanalyzers . | . . . Garrison Access . | . . . Terminal Hacks 5 | . 5 . Robot Analysis 3 | . 3 . Locate Traps 2 | . 2 . Fabricator Hacks . | . . . Repair Station Hacks . | . . . Recycling Unit Hacks . | . . . Scanalyzer . | . . . Garrison Access Hacks . | . . . Unauthorized Hacks 1 | . 1 . Terminals 1 | . 1 . Botnet 1 | . 1 . Fabricators . | . . . Repair Stations . | . . . Recycling Units . | . . . Scanalyzers . | . . . Garrison Access . | . . . Data Cores Recovered . | . . . Used . | . . . Hacking Detections 6 | . 6 . Full Trace Events 1 | . 1 . Feedback Events . | . . . Feedback Blocked . | . . . Robot Schematics Acquired . | . . . Robots Built . | . . . Authchips . | . . . Time . | . . . Total Robot Build Rating . | . . . Part Schematics Acquired . | . . . Parts Built . | . . . Authchips . | . . . Time . | . . . Total Part Build Rating . | . . . Parts Repaired . | . . . Time . | . . . Parts Recycled . | . . . Recycled Matter . | . . . Retrieved Matter . | . . . Retrieved Components . | . . . Parts Scanalyzed . | . . . Part Schematics Acquired . | . . . Parts Damaged . | . . . Bothacking | -11 -10 -10 ------------ Run | Yrd Mat Min Used RIF Installer . | . . . Robots Hacked . | . . . Non-combat . | . . . Combat . | . . . Robot Hacks Applied . | . . . Relay Couplers Released . | . . . Fabnet Peak Effective % . | . . . Robots Rewired . | . . . Allies Hacked . | . . . Hacks Repelled . | . . . Allies | -11 -10 -10 -------- Run | Yrd Mat Min Total Allies . | . . . Largest Group . | . . . Highest-Rated Group . | . . . Highest-Rated Ally . | . . . Total Orders . | . . . Ally Attacks . | . . . Total Damage . | . . . Kills . | . . . Allies Corrupted . | . . . Allies Melted . | . . . Intel | -11 -10 -10 ------- Run | Yrd Mat Min Active Infowar (turns) . | . . . Robot Analysis Total 3 | . 3 . Derelict Logs Recovered . | . . . Drone Launches . | . . . Drone Recoveries . | . . . Exploration | -11 -10 -10 ------------- Run | Yrd Mat Min Turns Passed 1577 | 30 1212 335 Spaces Moved 851 | 38 647 166 Core 70 | 38 32 . Treads 781 | . 615 166 Legs . | . . . Wheels . | . . . Hover . | . . . Flight . | . . . Fastest Speed 50 | 50 50 160 Average Speed 151 | 50 154 161 Slowest Speed 240 | 50 160 240 Overloaded Moves . | . . . Propulsion Burnouts . | . . . Robots Hopped . | . . . Potential Cave-ins . | . . . Cave-ins Triggered 2 | . . 2 Exploration Rate (%) 42 | 4 98 26 Regions Visited 2 Branch Regions 1 Pre-discovered Areas . | . . . Known Exits Taken . | . . . Unknown Exits Taken 2 | 1 1 . Scrap Searched . | . . . Spaces Dug . | . . . Terrain Destroyed 48 | . 1 47 Melee . | . . . Projectile 5 | . 1 4 AOE 43 | . . 43 Terrain Rammed . | . . . Walls Destroyed . | . . . Machines Disabled . | . . . Actions | -11 -10 -10 --------- Run | Yrd Mat Min Total 1029 | 47 781 201 Wait 68 | . 54 14 Move 849 | 37 646 166 Hop . | . . . Pick Up 24 | 7 16 1 Fast Attach 3 | 1 2 . Attach 8 | 2 6 . Detach . | . . . Swap 7 | . 4 3 Drop 8 | . 7 1 Fire 62 | . 46 16 Melee . | . . . Ram . | . . . Kick . | . . . Crush . | . . . Escape Stasis . | . . . Rewire . | . . . Trap . | . . . Miscellaneous . | . . . Route ------- -11/Scrapyard -10/Materials (discovered 4 exits: [*Mat x3] / [*Min]) -10/Mines History --------- Turn | Location | Event 10 | -11/Scrapyard | Discovered new exit (range 16) 31 | -11/Scrapyard | Entered Materials 313 | -10/Materials | Build established: Mutant 362 | -10/Materials | Discovered new exit (range 16) 537 | -10/Materials | Discovered new exit (range 8) 721 | -10/Materials | Discovered new exit (range 16) 1154 | -10/Materials | Discovered new exit (range 16) 1243 | -10/Materials | Entered Mines 1326 | -10/Mines | Assembled infested the area 1331 | -10/Mines | Assisted by a Guerilla fighting off Assembled 1396 | -10/Mines | Crushed by falling debris 1396 | -10/Mines | Core integrity fell below 50% 1434 | -10/Mines | Destroyed 7 combat bots 1552 | -10/Mines | Core integrity fell below 20% 1579 | -10/Mines | Crushed by falling debris 1579 | -10/Mines | Smashed by cave-in Last Messages --------------- 01563_ D-53 Grenadier destroyed. 01564_ The unstable cave ceiling collapses. 01564_ U-05 Engineer lays Concrete. 01566_ U-05 Engineer builds a Wall. 01567_ The unstable cave ceiling collapses. 01570_ U-05 Engineer lays Concrete. 01570_ U-05 Engineer builds a Wall. 01571_ Acquired 28 matter. 01573_ U-05 Engineer builds a Wall. 01574_ The unstable cave ceiling collapses. 01574_ U-05 Engineer lays Concrete. 01578_ System corrupted: Matter fused (-8). 01578_ The unstable cave ceiling collapses. 01578_ U-05 Engineer builds a Wall. 01579_ The unstable cave ceiling collapses. 01579_ Crushed by falling debris. 01579_ Imp. Light Cannon destroyed. 01579_ System corrupted by crushing effect (+3). 01579_ Lgt. Treads destroyed. 01579_ System corrupted by crushing effect (+5). Map ----- +----------------------------------------------------+ | | | | | | | | | ??????????????????????????????????????????????? | | ??????????????????????????????????????????????? | | ??????????????????????????????????????????????? | | ???????????????????????????????######?????????? | | ??????????????????????????????## ##????????? | | ?????????????????????????????## #????????? | | ?????????????????????????##### #????????? | | ?????????????????????????# #????????? | | ?????????????????????????# ### #????????? | | ??????????????#########??# #?## ##????????? | | ??????????????# #### #?## ##?????????? | | ??????????????# # ### ##?????????? | | ??????????????# # ##### #?????????? | | ??????????????# # # #?## ##????????? | | ?????? ### ## ### ##???????? | | ????? % """ ##??????? | | ???? """ #??????? | | ????? # # ! % """ ##?????? | | ????? ??# # % % ##????? | | ?????? ????# #######% %!% #### #????? | | ?????? ??????# ######## r ##??## ##???? | | ??????????????# ## @ # #?## ##??? | | ??????????????###### ### ;# u ### #??? | | ???????????????????# ###### # #??? | | ???????????????????# #????## ##??? | | ???????????????????# #????#### #####???? | | ???????????????????# #??### # ##???????? | | ???????????????????# #?##""""# ";##??????? | | ???????????????????# #?# #??????? | | ???????????????????# #?# #??????? | | ???????????????????# #?# ##?????? | | ???????????????????# #?# "#?????? | | ???????????????????# #?# "#?????? | | ???????????????????# #?# ##?????? | | ???????????????????# #?# "#?????? | | ???????????????????# #?# ##?????? | | ???????????????????# #?# #??????? | | ???????????????????# ### #??????? | | ???????????????????# #??????? | | ???????????????????##### #??????? | | ???????????????????????# #??????? | | ???????????????????????###"#"# " """###??????? | | ?????????????????????????#############????????? | | ??????????????????????????????????????????????? | | ??????????????????????????????????????????????? | | ??????????????????????????????????????????????? | +----------------------------------------------------+ Best States ------------- Heat Dissipation 25 Energy Generation 14 Energy Capacity 160 Matter Stores 300 Matter Capacity 300 Sight Range 16 Terrain Scan Density 10 Evasion (%) 50 Targeting Accuracy 6 Recoil Reduction 2 Item Schematics ----------------- None Robot Schematics ------------------ None Fabricated ------------ Nothing Repaired ---------- Nothing Alien Tech Used ----------------- None Achievements -------------- None Challenges ------------ None Game ------ Seed BorePersonalWarhead Manual? 0 Play Time 00:12:18 Cumulative 192.6 hours Start 2025.09.30 @ 14:58:27 End 2025.09.30 @ 15:14:56 Sessions 1 Manual Loads 0 Difficulty Rogue Special Mode None Game No. 306 Rogue 303 Adventurer 3 Explorer 0 Win Type - Total 1 Types 1/0/0/0/0/0/0/0/0/0 Lore% 64 Gallery% 60 Achievement% 47 Wizard Run 0 Options --------- Layout 0 ASCII 0 Keyboard 0 Movement Mouse Keybinds 0 Fullscreen 2 Font 18/SmallcapsGlow Map View 76x50 Zoom Use 0% Tactical HUD 1 Map Filters NONE Filters NONE Steam 1 RUN: ba31c0b5-1d53-40aa-99a5-95c1aacf95aa